bitfinex-derivatives/quotes_BTCF0:USTF0_20260221
["timestamp","ask_amount","ask_price","bid_price","bid_amount"]
[1771715661659,0.014706,68020.0,68012.0,0.47076]
[1771715661854,0.0613773,68022.0,68014.0,0.014707]
[1771715661855,0.014705,68021.0,68014.0,0.014707]
[1771715663964,0.014705,68024.0,68014.0,0.014707]
[1771715663965,0.014705,68022.0,68014.0,0.029414]
[1771715665272,0.014705,68022.0,68015.0,0.014706]
[1771715668064,0.014705,68021.0,68014.0,0.014707]
[1771715669165,0.014705,68021.0,68013.0,0.014707]
[1771715669363,0.014707,68015.0,68007.0,0.014708]
[1771715669865,0.014707,68013.0,68005.0,0.014709]
[1771715670061,0.014707,68013.0,68007.0,0.00092]
[1771715670269,0.014707,68014.0,68007.0,0.014708]
[1771715670868,0.014707,68015.0,68007.0,0.029416]
[1771715671570,0.014707,68014.0,68007.0,0.014708]
[1771715671769,0.014707,68015.0,68007.0,0.029416]
[1771715671968,0.014707,68015.0,68007.0,0.014708]
[1771715672168,0.014706,68016.0,68008.0,0.014708]
[1771715672370,0.014706,68016.0,68007.0,0.014708]
[1771715672371,0.014706,68016.0,68009.0,0.014708]
[1771715677376,0.014706,68018.0,68010.0,0.014707]
[1771715677575,0.014705,68022.0,68010.0,0.014707]
[1771715677576,0.014705,68022.0,68010.0,0.014708]
[1771715678577,0.014706,68017.0,68010.0,0.014708]
[1771715679376,0.014706,68017.0,68009.0,0.014708]
[1771715680083,0.014706,68017.0,68010.0,0.014708]
[1771715681578,0.32732429,68024.0,68003.0,0.014709]
[1771715681782,0.014706,68016.0,68008.0,0.014708]
[1771715683084,0.014706,68016.0,68008.0,0.029416]
[1771715683987,0.014707,68015.0,68007.0,0.014708]
[1771715684188,0.014706,68016.0,68004.0,0.014709]
[1771715684690,0.014706,68016.0,68008.0,0.014708]
[1771715684984,0.014706,68016.0,68008.0,0.029416]
[1771715685690,0.014706,68016.0,68009.0,0.014708]
[1771715688992,0.014706,68017.0,68009.0,0.014708]
[1771715689689,0.014707,68013.0,68005.0,0.58605249]
[1771715689894,0.014707,68013.0,68004.0,0.029418]
[1771715690096,0.014707,68012.0,68004.0,0.014709]
[1771715690795,0.014708,68010.0,68002.0,0.014709]
[1771715691795,0.01967079,68012.0,67993.0,0.014711]
[1771715691998,0.014709,68004.0,67995.0,0.014711]
[1771715693303,0.014709,68003.0,67993.0,0.014711]
[1771715694193,0.014709,68003.0,67995.0,0.014711]
[1771715694595,0.014708,68008.0,67993.0,0.014711]
[1771715694797,0.029418,68006.0,67997.0,0.01471]
[1771715695504,0.014709,68005.0,67997.0,0.01471]
[1771715696305,0.014709,68004.0,67995.0,0.014711]
[1771715697007,0.029418,68004.0,67995.0,0.014711]
[1771715698405,0.014709,68003.0,67993.0,0.014711]
[1771715698600,0.014709,68004.0,67995.0,0.014711]
[1771715698801,0.01471,68000.0,67987.0,0.014713]
[1771715699007,0.49358817,67999.0,67977.0,0.57134349]
[1771715699198,0.49358817,67998.0,67977.0,0.58605849]
[1771715699399,0.014713,67984.0,67981.0,5e-07]
[1771715699607,0.014712,67989.0,67981.0,5e-07]
[1771715699801,0.014713,67986.0,67981.0,5e-07]
[1771715699996,0.014713,67985.0,67981.0,5e-07]
[1771715700195,0.014711,67994.0,67981.0,5e-07]
[1771715700398,0.014711,67994.0,67985.0,0.014713]
[1771715700597,0.014711,67994.0,67986.0,0.014713]
[1771715700900,0.01471,67999.0,67990.0,0.014712]
[1771715701098,0.014711,67997.0,67981.0,0.58605799]
[1771715701404,0.014711,67993.0,67984.0,0.014713]
[1771715701604,0.014711,67993.0,67985.0,0.014713]
[1771715701804,0.014711,67994.0,67986.0,0.014713]
[1771715702202,0.014711,67995.0,67986.0,0.014713]
[1771715702399,0.014711,67995.0,67985.0,0.014713]
[1771715702400,0.014711,67993.0,67985.0,0.014713]
[1771715702799,0.014711,67994.0,67986.0,0.014713]
[1771715703006,0.014708,68007.0,67989.0,0.014712]
[1771715703205,0.01471,67999.0,67990.0,0.014712]
[1771715704012,0.01471,67998.0,67990.0,0.014712]
[1771715704310,0.01471,67999.0,67991.0,0.014712]
[1771715704508,0.01471,68000.0,67992.0,0.014711]
[1771715704911,0.014709,68002.0,67993.0,0.014711]
[1771715705105,0.01471,68001.0,67993.0,0.014711]
[1771715705309,0.01471,68001.0,67994.0,0.014711]
[1771715705809,0.014709,68004.0,67996.0,0.014711]
[1771715706010,0.014709,68003.0,67996.0,0.014711]
[1771715706401,0.014709,68004.0,67992.0,0.014712]
[1771715706601,0.014709,68004.0,67996.0,0.01471]
[1771715706910,0.014709,68005.0,67997.0,0.01471]
[1771715707707,0.014708,68007.0,68000.0,0.01471]
[1771715709011,0.014709,68006.0,67999.0,0.01471]
[1771715709411,0.014709,68006.0,68000.0,0.01471]
[1771715709810,0.014708,68010.0,68003.0,0.014709]
[1771715710210,0.014707,68011.0,68001.0,0.014709]
[1771715710417,0.014708,68010.0,68002.0,0.014709]
[1771715710616,0.014708,68009.0,68002.0,0.014709]
[1771715711223,0.014708,68010.0,68003.0,0.029418]
[1771715711419,0.014708,68010.0,68003.0,0.014709]
[1771715711712,0.014707,68012.0,68004.0,0.014709]
[1771715711919,0.014707,68014.0,68000.0,0.55190923]
[1771715712118,0.014707,68013.0,68006.0,0.014708]
[1771715715722,0.014706,68017.0,68007.0,0.014708]
[1771715715923,0.014707,68013.0,68007.0,0.014708]
[1771715716221,0.014707,68012.0,68005.0,0.014709]
[1771715717023,0.014707,68012.0,68005.0,0.029418]
[1771715717220,0.014707,68012.0,68005.0,0.014709]
[1771715717417,0.014708,68009.0,68003.0,0.014709]
[1771715717922,0.014708,68010.0,68003.0,0.014709]
[1771715718219,0.014708,68010.0,68002.0,0.014709]
[1771715718428,0.014708,68010.0,68003.0,0.014709]
[1771715720128,0.014708,68010.0,68002.0,0.014709]
[1771715720324,0.014708,68009.0,68002.0,0.014709]
[1771715720717,0.014708,68011.0,68002.0,0.014709]
[1771715720922,0.014708,68010.0,68002.0,0.014709]
[1771715723326,0.014707,68013.0,68003.0,0.014709]
[1771715724626,0.014707,68012.0,68004.0,0.014709]
[1771715729231,0.014707,68011.0,68004.0,0.014709]
[1771715736328,0.014707,68011.0,68003.0,0.014709]
[1771715739932,0.014705,68022.0,68001.0,0.53984737]
[1771715740132,0.014707,68015.0,68008.0,0.014708]
[1771715740430,0.014707,68014.0,68006.0,0.014708]
[1771715747442,0.014707,68014.0,68007.0,0.014708]
[1771715748238,0.014707,68014.0,68005.0,0.029418]
[1771715748640,0.029414,68014.0,68005.0,0.029418]
[1771715748848,0.014707,68014.0,68006.0,0.014708]
[1771715750050,0.014707,68013.0,68005.0,0.014709]
[1771715750253,0.014707,68013.0,68006.0,0.014708]
[1771715752648,0.47203602,68017.0,67993.0,0.96603304]
[1771715752848,0.48674302,68014.0,68000.0,0.06136826]
[1771715753153,0.014707,68012.0,68003.0,0.014709]
[1771715753347,0.014707,68011.0,68003.0,0.014709]
[1771715753654,0.014707,68015.0,68006.0,0.014708]
[1771715753854,0.014707,68014.0,68006.0,0.014708]
[1771715754558,0.014707,68014.0,68005.0,0.014709]
[1771715755257,0.014707,68014.0,68006.0,0.014708]
[1771715755757,0.014705,68022.0,68001.0,0.52513837]
[1771715755950,0.014706,68020.0,68012.0,0.014707]
[1771715756255,0.014706,68020.0,68011.0,0.014707]
[1771715756458,0.06136826,68030.0,68001.0,0.52513837]
[1771715756459,0.014706,68016.0,68006.0,0.014708]
[1771715756659,0.014706,68017.0,68009.0,0.029416]
[1771715756864,0.014706,68020.0,68009.0,0.014708]
[1771715757160,0.014706,68019.0,68010.0,0.014708]
[1771715757459,0.014706,68018.0,68010.0,0.014708]
[1771715757761,0.014706,68019.0,68011.0,0.014707]
[1771715758057,0.014704,68025.0,68013.0,0.014707]
[1771715758258,0.014705,68021.0,68013.0,0.014707]
[1771715758558,0.014705,68021.0,68012.0,0.014707]
[1771715758762,0.014705,68021.0,68011.0,0.014707]
[1771715758763,0.014705,68021.0,68013.0,0.014707]
[1771715759057,0.014705,68021.0,68011.0,0.014707]
[1771715759058,0.014704,68027.0,68019.0,0.014705]
[1771715759253,0.014704,68027.0,68017.0,0.014706]
[1771715759455,0.014704,68026.0,68013.0,0.014707]
[1771715759655,0.014705,68025.0,68016.0,0.014706]
[1771715760063,0.014704,68027.0,68018.0,0.014706]
[1771715760252,0.014704,68027.0,68017.0,0.014706]
[1771715760253,0.014704,68028.0,68019.0,0.014706]
[1771715760453,0.014703,68030.0,68020.0,0.014705]
[1771715760753,0.014704,68029.0,68019.0,0.014706]
[1771715760959,0.014704,68028.0,68020.0,0.014705]
[1771715761359,0.014704,68027.0,68019.0,0.014705]
[1771715761757,0.014703,68032.0,68020.0,0.014705]
[1771715761953,0.014704,68029.0,68021.0,0.014705]
[1771715762153,0.029408,68029.0,68021.0,0.014705]
[1771715762458,0.014704,68029.0,68021.0,0.014705]
[1771715762763,0.029408,68029.0,68021.0,0.014705]
[1771715763455,0.014704,68027.0,68018.0,0.014706]
[1771715763663,0.014704,68026.0,68018.0,0.014706]
[1771715763962,0.014704,68027.0,68019.0,0.014706]
[1771715764362,0.014704,68028.0,68020.0,0.014705]
[1771715765654,0.46757107,68039.0,68022.0,0.014705]
[1771715765655,0.014702,68037.0,68022.0,0.014705]
[1771715766668,0.014703,68032.0,68024.0,0.014705]
[1771715767375,0.029406,68032.0,68024.0,0.014705]
[1771715767666,0.014703,68032.0,68024.0,0.014705]
[1771715768468,0.014702,68036.0,68026.0,0.014704]
[1771715768469,0.014702,68035.0,68026.0,0.014704]
[1771715768770,0.014702,68037.0,68028.0,0.014704]
[1771715768962,0.014702,68036.0,68028.0,0.014704]
[1771715769159,0.014702,68036.0,68025.0,0.014704]
[1771715769160,0.014702,68036.0,68027.0,0.014704]
[1771715770870,0.014702,68037.0,68028.0,0.014704]
[1771715771766,0.029404,68037.0,68028.0,0.014704]
[1771715772972,0.014701,68043.0,68030.0,0.014703]
[1771715773163,0.014701,68039.0,68030.0,0.09077426]
[1771715773363,0.014701,68039.0,68031.0,0.014703]
[1771715773762,0.0147,68046.0,68031.0,0.014703]
[1771715773964,0.0147,68046.0,68036.0,0.014702]
[1771715773965,0.0147,68044.0,68036.0,0.014702]
[1771715774165,0.0147,68046.0,68033.0,0.014703]
[1771715774366,0.0147,68046.0,68037.0,0.014702]
[1771715774565,0.0294,68046.0,68037.0,0.014702]
[1771715774766,0.0147,68045.0,68037.0,0.014702]
[1771715776569,0.0147,68044.0,68035.0,0.014702]
[1771715776777,0.0147,68044.0,68036.0,0.014702]
[1771715777068,0.0147,68044.0,68035.0,0.014702]
[1771715777069,0.014703,68033.0,68016.0,0.51218944]
[1771715777376,0.014702,68035.0,68027.0,0.014704]
[1771715778874,0.014701,68039.0,68029.0,0.014703]
[1771715779073,0.45946219,68041.0,68022.0,0.014705]
[1771715779074,0.014702,68036.0,68028.0,0.014704]
[1771715781277,0.014702,68038.0,68029.0,0.014703]
[1771715781881,0.029404,68038.0,68029.0,0.014703]
[1771715783782,0.014701,68039.0,68029.0,0.014703]
[1771715783971,0.014702,68038.0,68030.0,0.014703]
[1771715784171,0.014701,68039.0,68031.0,0.014703]
[1771715785680,0.014702,68038.0,68030.0,0.014703]
[1771715787167,0.014702,68039.0,68024.0,0.014704]
[1771715787370,0.014703,68031.0,68022.0,0.02941]
[1771715787570,0.014703,68031.0,68022.0,0.014705]
[1771715787874,0.014703,68031.0,68022.0,0.02941]
[1771715788069,0.014703,68031.0,68023.0,0.014705]
[1771715789378,0.014703,68030.0,68020.0,0.014705]
[1771715789576,0.014704,68028.0,68019.0,0.014706]
[1771715789777,0.014704,68027.0,68018.0,0.029412]
[1771715789973,0.014704,68028.0,68018.0,0.014706]
[1771715790182,0.014704,68027.0,68019.0,0.014706]
[1771715790484,0.014704,68028.0,68019.0,0.014706]
[1771715790875,0.014704,68027.0,68019.0,0.014706]
[1771715791774,0.014704,68027.0,68018.0,0.014706]
[1771715792182,0.014704,68027.0,68018.0,0.029412]
[1771715792481,0.014704,68027.0,68019.0,0.014706]
[1771715792677,0.014704,68027.0,68018.0,0.014706]
[1771715792882,0.014704,68027.0,68018.0,0.029412]
[1771715794476,0.014704,68026.0,68018.0,0.014706]
[1771715794778,0.014704,68027.0,68018.0,0.014706]
[1771715795083,0.014704,68027.0,68018.0,0.029412]
[1771715795384,0.014705,68024.0,68016.0,0.33037255]
[1771715795578,0.014704,68026.0,68017.0,0.029412]
[1771715795877,0.014704,68026.0,68018.0,0.014706]
[1771715796076,0.014704,68027.0,68018.0,0.014706]
[1771715797981,0.014704,68027.0,68019.0,0.014706]
[1771715802088,0.014704,68028.0,68020.0,0.014705]
[1771715802281,0.014703,68030.0,68020.0,0.014705]
[1771715802481,0.014703,68030.0,68021.0,0.014705]
[1771715807588,0.014703,68030.0,68022.0,0.014705]
[1771715808887,0.014703,68030.0,68021.0,0.014705]
[1771715809491,0.014703,68030.0,68021.0,0.02941]
[1771715810087,0.014703,68030.0,68022.0,0.014705]
[1771715812688,0.014703,68030.0,68022.0,0.01385903]
[1771715817997,0.029406,68030.0,68022.0,0.01385903]
[1771715819590,0.014703,68030.0,68022.0,0.01385903]
[1771715820598,0.029406,68030.0,68022.0,0.01385903]
[1771715821500,0.014703,68030.0,68022.0,0.01385903]
[1771715822494,0.4036426,68048.0,68024.0,0.014705]
[1771715822697,0.014703,68033.0,68025.0,0.014704]
[1771715822896,0.014703,68030.0,68021.0,0.34507755]
[1771715823091,0.014704,68029.0,68021.0,0.014705]
[1771715823291,0.014704,68029.0,68020.0,0.014705]
[1771715824692,0.014704,68029.0,68022.0,0.014705]
[1771715826103,0.014704,68029.0,68021.0,0.014705]
[1771715832299,0.014704,68029.0,68020.0,0.014705]
[1771715832300,0.014703,68033.0,68024.0,0.014705]
[1771715832500,0.014703,68033.0,68024.0,0.02941]
[1771715833107,0.014703,68032.0,68024.0,0.014705]
[1771715835309,0.014703,68032.0,68024.0,0.029409]
[1771715835712,0.014703,68032.0,68025.0,0.014704]
[1771715836405,0.014702,68036.0,68020.0,0.014705]
[1771715836406,0.014702,68036.0,68028.0,0.014704]
[1771715836610,0.014702,68036.0,68029.0,0.014703]
[1771715840711,0.014702,68036.0,68028.0,0.014704]
[1771715842310,0.014701,68042.0,68023.0,0.014705]
[1771715842617,0.014703,68032.0,68024.0,0.014705]
[1771715843206,0.014703,68032.0,68025.0,0.014704]
[1771715843816,0.014703,68033.0,68025.0,0.014704]
[1771715851831,0.014703,68032.0,68025.0,0.014704]
[1771715852026,0.014704,68029.0,68022.0,0.014705]
[1771715852233,0.014704,68028.0,68019.0,0.33037255]
[1771715852428,0.014704,68028.0,68020.0,0.014705]
[1771715854728,0.014703,68030.0,68020.0,0.014705]
[1771715855636,0.014704,68028.0,68020.0,0.014705]
[1771715860439,0.014702,68036.0,68023.0,0.014705]
[1771715861630,0.014703,68032.0,68024.0,0.014705]
[1771715862736,0.014703,68033.0,68025.0,0.014704]
[1771715862938,0.014703,68032.0,68024.0,0.014705]
[1771715863644,0.014703,68032.0,68023.0,0.014705]
[1771715864338,0.014703,68032.0,68024.0,0.014705]
[1771715869345,0.014703,68032.0,68023.0,0.014705]
[1771715869649,0.014701,68040.0,68014.0,0.82542399]
[1771715869650,0.014704,68025.0,68016.0,0.014706]
[1771715870540,0.014704,68025.0,68016.0,0.029412]
[1771715870849,0.014704,68026.0,68017.0,0.014706]
[1771715871049,0.014704,68026.0,68020.0,0.00088]
[1771715871347,0.014704,68026.0,68017.0,0.014706]
[1771715871744,0.014703,68031.0,68021.0,0.014705]
[1771715872048,0.014703,68031.0,68023.0,0.014705]
[1771715873052,0.014703,68031.0,68022.0,0.014705]
[1771715874043,0.014703,68031.0,68025.0,0.00092]
[1771715874246,0.014703,68031.0,68023.0,0.014705]
[1771715875752,0.014702,68034.0,68025.0,0.014704]
[1771715875943,0.029405,68034.0,68025.0,0.014704]
[1771715876543,0.014703,68033.0,68025.0,0.014704]
[1771715879845,0.014703,68033.0,68025.0,0.029408]
[1771715880548,0.014703,68034.0,68026.0,0.014704]
[1771715880857,0.029406,68034.0,68026.0,0.014704]
[1771715881452,0.014703,68034.0,68026.0,0.014704]
[1771715882257,0.014702,68035.0,68027.0,0.014704]
[1771715882449,0.014702,68035.0,68028.0,0.014704]
[1771715883959,0.014702,68034.0,68027.0,0.014704]
[1771715884360,0.014703,68033.0,68026.0,0.014704]
[1771715885753,0.029406,68033.0,68026.0,0.014704]
[1771715886460,0.014703,68033.0,68026.0,0.014704]
[1771715887160,0.014702,68034.0,68027.0,0.014704]
[1771715887560,0.014702,68034.0,68026.0,0.014704]
[1771715887862,0.014702,68034.0,68027.0,0.014704]
[1771715889061,0.014702,68034.0,68028.0,0.0008]
[1771715889264,0.014702,68034.0,68027.0,0.014704]
[1771715891161,0.34916954,68047.0,68033.0,0.014703]
[1771715891362,0.014701,68039.0,68033.0,0.014702]
[1771715891561,0.014701,68039.0,68032.0,0.014703]
[1771715891864,0.014701,68040.0,68033.0,0.014703]
[1771715892257,0.014701,68039.0,68032.0,0.014703]
[1771715892460,0.0147,68047.0,68039.0,0.014701]
[1771715892657,0.0147,68046.0,68038.0,0.014701]
[1771715892966,0.0147,68047.0,68038.0,0.014701]
[1771715893464,0.0147,68045.0,68038.0,0.014701]
[1771715893862,0.0147,68045.0,68035.0,0.014702]
[1771715895058,0.0147,68044.0,68035.0,0.014702]
[1771715895259,0.014701,68043.0,68035.0,0.014702]
[1771715896063,0.014701,68042.0,68035.0,0.014702]
[1771715896470,0.014701,68041.0,68032.0,0.014703]
[1771715897369,0.014701,68041.0,68033.0,0.014703]
[1771715898162,0.3482927,68076.0,68047.0,0.43555908]
[1771715898363,0.07605834,68060.0,68050.0,0.014699]
[1771715898774,0.07605834,68060.0,68052.0,0.014699]
[1771715899267,0.014697,68060.0,68052.0,0.014699]
[1771715901766,0.014697,68059.0,68050.0,0.014699]
[1771715902074,0.014697,68058.0,68048.0,0.014699]
[1771715902468,0.014697,68059.0,68050.0,0.014699]
[1771715902972,0.014697,68060.0,68051.0,0.014699]
[1771715904172,0.014697,68060.0,68052.0,0.014699]
[1771715904575,0.014697,68060.0,68050.0,0.014699]
[1771715904869,0.014697,68060.0,68052.0,0.014699]
[1771715906870,0.014697,68059.0,68051.0,0.014699]
[1771715907071,0.014697,68060.0,68051.0,0.014699]
[1771715907470,0.014697,68060.0,68052.0,0.014699]
[1771715908577,0.014698,68053.0,68043.0,0.0147]
[1771715908778,0.014698,68053.0,68044.0,0.0147]
[1771715909080,0.014699,68052.0,68044.0,0.0147]
[1771715909585,0.014698,68053.0,68044.0,0.0147]
[1771715910286,0.014698,68053.0,68044.0,0.0294]
[1771715910873,0.014698,68053.0,68045.0,0.0147]
[1771715912092,0.014698,68057.0,68048.0,0.014699]
[1771715913184,0.029396,68057.0,68048.0,0.014699]
[1771715914083,0.014698,68057.0,68048.0,0.014699]
[1771715914288,0.014698,68057.0,68046.0,0.0147]
[1771715914289,0.014699,68051.0,68042.0,0.014701]
[1771715914784,0.014699,68052.0,68043.0,0.0147]
[1771715914983,0.014699,68053.0,68043.0,0.0147]
[1771715914984,0.014699,68051.0,68043.0,0.0147]
[1771715915384,0.014699,68052.0,68044.0,0.0147]
[1771715917679,0.00073442,68081.0,68045.0,0.43555908]
[1771715917889,0.014696,68065.0,68057.0,0.014697]
[1771715918388,0.014695,68068.0,68057.0,0.014697]
[1771715918389,0.014696,68066.0,68057.0,0.014697]
[1771715918783,0.014696,68066.0,68058.0,0.014697]
[1771715919585,0.014696,68066.0,68059.0,0.014697]
[1771715919991,0.014696,68066.0,68060.0,0.014697]
[1771715920894,0.014696,68066.0,68061.0,0.014697]
[1771715924497,0.014696,68066.0,68062.0,0.014696]
[1771715925296,0.014694,68071.0,68064.0,0.014696]
[1771715925498,0.014695,68069.0,68064.0,0.014696]
[1771715925795,0.02939,68069.0,68064.0,0.014696]
[1771715925989,0.014695,68068.0,68064.0,0.014696]
[1771715926389,0.014695,68069.0,68064.0,0.014696]
[1771715926589,0.02939,68069.0,68064.0,0.014696]
[1771715926794,0.014695,68068.0,68063.0,0.014696]
[1771715927187,0.014695,68068.0,68063.0,0.029392]
[1771715927500,0.014695,68068.0,68063.0,0.014696]
[1771715927796,0.32689996,68078.0,68065.0,0.014696]
[1771715928098,0.014695,68070.0,68065.0,0.014696]
[1771715928292,0.014695,68068.0,68059.0,0.014697]
[1771715928797,0.014695,68067.0,68053.0,0.014698]
[1771715929683,0.014695,68067.0,68062.0,0.014696]
[1771715930396,0.014695,68067.0,68062.0,0.029392]
[1771715930997,0.014695,68067.0,68062.0,0.014696]
[1771715931199,0.014695,68068.0,68063.0,0.014696]
[1771715932096,0.014695,68070.0,68065.0,0.014696]
[1771715932800,0.02939,68070.0,68065.0,0.014696]
[1771715933496,0.014695,68069.0,68065.0,0.014696]
[1771715934000,0.014695,68069.0,68064.0,0.014696]
[1771715936195,0.014696,68065.0,68060.0,0.014697]
[1771715937089,0.014696,68066.0,68061.0,0.014697]
[1771715937290,0.014695,68067.0,68062.0,0.014696]
[1771715938503,0.014696,68066.0,68062.0,0.014696]
[1771715938985,0.014696,68066.0,68061.0,0.014697]
[1771715942096,0.014697,68062.0,68057.0,0.014697]
[1771715942298,0.014696,68063.0,68058.0,0.014697]
[1771715942500,0.014696,68063.0,68050.0,0.014699]
[1771715942897,0.03433809,68070.0,68056.0,0.014698]
[1771715943098,0.014697,68062.0,68056.0,0.014698]
[1771715943293,0.014696,68063.0,68057.0,0.014697]
[1771715943700,0.014696,68066.0,68060.0,0.014697]
[1771715944897,0.014696,68063.0,68058.0,0.014697]
[1771715945098,0.014696,68063.0,68054.0,0.014698]
[1771715945498,0.014696,68063.0,68057.0,0.014697]
[1771715946404,0.014696,68063.0,68056.0,0.014698]
[1771715946592,0.029392,68063.0,68056.0,0.014698]
[1771715947293,0.014696,68062.0,68056.0,0.014698]
[1771715948798,0.014696,68063.0,68056.0,0.014698]
[1771715950203,0.014696,68063.0,68054.0,0.014698]
[1771715950204,0.014697,68062.0,68055.0,0.014698]
[1771715950510,0.014697,68062.0,68055.0,0.029396]
[1771715950892,0.014697,68062.0,68055.0,0.014698]
[1771715951307,0.014697,68062.0,68056.0,0.014698]
[1771715952003,0.014696,68063.0,68056.0,0.014698]
[1771715955911,0.014697,68061.0,68054.0,0.014698]
[1771715956105,0.014696,68062.0,68054.0,0.014698]
[1771715956306,0.014696,68063.0,68056.0,0.014698]
[1771715956805,0.014696,68062.0,68055.0,0.014698]
[1771715957106,0.014696,68063.0,68056.0,0.014698]
[1771715958112,0.014696,68062.0,68056.0,0.014698]
[1771715958313,0.014696,68062.0,68055.0,0.014698]
[1771715958517,0.014696,68063.0,68056.0,0.014698]
[1771715961118,0.014696,68062.0,68056.0,0.014698]
[1771715962306,0.029392,68064.0,68056.0,0.029396]
[1771715963615,0.014696,68064.0,68057.0,0.014697]
[1771715963808,0.014696,68064.0,68058.0,0.014697]
[1771715964619,0.014696,68065.0,68058.0,0.014697]
[1771715964820,0.014696,68065.0,68059.0,0.014697]
[1771715965924,0.014696,68064.0,68056.0,0.014698]
[1771715966121,0.014696,68066.0,68054.0,0.014698]
[1771715966122,0.014696,68063.0,68057.0,0.014697]
[1771715966420,0.014696,68066.0,68060.0,0.014697]
[1771715966613,0.02939,68068.0,68062.0,0.014696]
[1771715967225,0.014695,68071.0,68061.0,0.014696]
[1771715967419,0.02939,68070.0,68064.0,0.014696]
[1771715967720,0.02939,68070.0,68063.0,0.014696]
[1771715967721,0.014695,68067.0,68063.0,0.014696]
[1771715968119,0.014695,68068.0,68063.0,0.014696]
[1771715968420,0.014695,68069.0,68063.0,0.014696]
[1771715969720,0.014695,68069.0,68064.0,0.014696]
[1771715981634,0.014695,68068.0,68061.0,0.014697]
[1771715981829,0.014695,68068.0,68063.0,0.014696]
[1771715982831,0.014695,68068.0,68063.0,0.029392]
[1771715984125,0.014695,68068.0,68063.0,0.014696]
[1771715985936,0.014695,68068.0,68063.0,0.029392]
[1771715986436,0.014695,68069.0,68064.0,0.014696]
[1771715991435,0.014695,68069.0,68065.0,0.014696]
[1771715994432,0.014695,68069.0,68052.0,0.39907033]
[1771715994433,0.014692,68082.0,68068.0,0.014695]
[1771715994632,0.014693,68078.0,68068.0,0.014695]
[1771715994838,0.014694,68073.0,68068.0,0.014695]
[1771715997841,0.014694,68075.0,68068.0,0.014695]
[1771715998029,0.014694,68073.0,68068.0,0.014695]
[1771715998549,0.014696,68064.0,68059.0,0.014697]
[1771715998734,0.06127785,68070.0,68051.0,0.014699]
[1771715998936,0.014696,68064.0,68059.0,0.014697]
[1771715999233,0.014696,68064.0,68054.0,0.014698]
[1771715999538,0.014696,68064.0,68059.0,0.015697]
[1771715999732,0.014696,68064.0,68057.0,0.014697]
[1771716000247,0.014695,68067.0,68059.0,0.014697]
[1771716000442,0.014693,68079.0,68063.0,0.014696]
[1771716000634,0.014694,68073.0,68067.0,0.014695]
[1771716000830,0.014694,68072.0,68066.0,0.014695]
[1771716001229,0.014694,68071.0,68065.0,0.014696]
[1771716001436,0.014695,68069.0,68064.0,0.014696]
[1771716001935,0.014695,68070.0,68064.0,0.029392]
[1771716002140,0.014694,68071.0,68065.0,0.014696]
[1771716002441,0.014694,68071.0,68066.0,0.014696]
[1771716005840,0.014694,68071.0,68062.0,0.014696]
[1771716006042,0.014695,68070.0,68065.0,0.00084]
[1771716006237,0.014695,68070.0,68065.0,0.014696]
[1771716006745,0.014695,68070.0,68066.0,0.014696]
[1771716007144,0.014695,68071.0,68066.0,0.014696]
[1771716010145,0.014695,68071.0,68066.0,0.029391]
[1771716010345,0.014694,68072.0,68067.0,0.014695]
[1771716010547,0.014694,68071.0,68067.0,0.014695]
[1771716013044,0.014694,68074.0,68069.0,0.014695]
[1771716013549,0.014694,68075.0,68069.0,0.014695]
[1771716013847,0.014694,68075.0,68070.0,0.014695]
[1771716014242,0.014694,68074.0,68070.0,0.014695]
[1771716016638,0.13380963,68090.0,68064.0,0.46228048]
[1771716016837,0.014689,68097.0,68088.0,0.014691]
[1771716017039,0.27199875,68096.0,68068.0,0.34405648]
[1771716017241,0.27199875,68096.0,68058.0,0.44089467]
[1771716017242,0.01469,68090.0,68071.0,0.014694]
[1771716017553,0.014692,68085.0,68079.0,0.014693]
[1771716017743,0.014691,68089.0,68080.0,0.014692]
[1771716018048,0.014691,68085.0,68080.0,0.014692]
[1771716018238,0.014691,68085.0,68079.0,0.014693]
[1771716018437,0.014691,68085.0,68080.0,0.014692]
[1771716018747,0.014691,68086.0,68081.0,0.014692]
[1771716018941,0.014691,68089.0,68080.0,0.014692]
[1771716019342,0.014691,68089.0,68070.0,0.06127785]
[1771716019343,0.014693,68080.0,68075.0,0.014694]
[1771716019744,0.014693,68079.0,68074.0,0.014694]
[1771716020443,0.014693,68078.0,68073.0,0.014694]
[1771716020643,0.01270556,68078.0,68073.0,0.014694]
[1771716021149,0.014693,68079.0,68073.0,0.014694]
[1771716023052,0.014693,68077.0,68070.0,0.014695]
[1771716023250,0.014692,68084.0,68063.0,0.41569863]
[1771716023750,0.029386,68079.0,68072.0,0.014694]
[1771716024053,0.014693,68079.0,68072.0,0.014694]
[1771716025652,0.014693,68079.0,68072.0,0.029388]
[1771716026150,0.014692,68082.0,68075.0,0.014693]
[1771716026845,0.014692,68081.0,68075.0,0.014693]
[1771716027045,0.014692,68081.0,68075.0,0.015533]
[1771716027244,0.014692,68081.0,68075.0,0.014693]
[1771716031654,0.014692,68085.0,68077.0,0.014693]
[1771716032155,0.014692,68084.0,68078.0,0.014693]
[1771716032355,0.014692,68083.0,68078.0,0.014693]
[1771716032856,0.001,68085.0,68073.0,0.014694]
[1771716033058,0.014693,68080.0,68073.0,0.014694]
[1771716033759,0.014693,68078.0,68073.0,0.014694]
[1771716033960,0.014693,68077.0,68071.0,0.014694]
[1771716034257,0.014693,68077.0,68072.0,0.014694]